[Event "*** Titled Tuesday 3|2 Blitz (Early)"]
[Site "Chess.com"]
[Date "2016.11.01"]
[Round "5"]
[White "gmsakk"]
[Black "Fandorine"]
[Result "0-1"]
[WhiteElo "2526"]
[BlackElo "2632"]
[TimeControl "180+2"]
[EndTime "12:02:54 PDT"]
[Termination "Fandorine won by resignation"]

1. d4 {[%clk 0:03:01.9]} 1... g6 {[%clk 0:02:56.5]} 2. c4 {[%clk 0:03:02.8]}
2... Bg7 {[%clk 0:02:57.8]} 3. Nf3 {[%clk 0:03:03.5]} 3... d6 {[%clk 0:02:59.2]}
4. Nc3 {[%clk 0:03:04.6]} 4... Nf6 {[%clk 0:03:00.7]} 5. e4 {[%clk 0:03:06]}
5... O-O {[%clk 0:03:02.4]} 6. Be2 {[%clk 0:03:07.5]} 6... Nbd7 {[%clk
0:03:02.5]} 7. O-O {[%clk 0:03:07]} 7... e5 {[%clk 0:03:04.1]} 8. Be3 {[%clk
0:03:08.3]} 8... c6 {[%clk 0:03:02.8]} 9. Qc2 {[%clk 0:03:07.8]} 9... Qe7 {[%clk
0:02:45.4]} 10. Rfe1 {[%clk 0:03:07.2]} 10... Ng4 {[%clk 0:02:17.9]} 11. Bg5
{[%clk 0:03:07.6]} 11... f6 {[%clk 0:02:19.1]} 12. Bh4 {[%clk 0:03:08.7]} 12...
Nh6 {[%clk 0:02:16.8]} 13. d5 {[%clk 0:02:55.3]} 13... c5 {[%clk 0:02:13.1]} 14.
Rf1 {[%clk 0:02:52.7]} 14... Nf7 {[%clk 0:02:12.1]} 15. Ne1 {[%clk 0:02:53.3]}
15... Bh6 {[%clk 0:02:03.9]} 16. Bd3 {[%clk 0:02:53.9]} 16... Bg5 {[%clk
0:02:03.4]} 17. Bg3 {[%clk 0:02:54.5]} 17... Bf4 {[%clk 0:01:59.7]} 18. Be2
{[%clk 0:02:53.4]} 18... Bxg3 {[%clk 0:01:55.8]} 19. hxg3 {[%clk 0:02:51.5]}
19... Kg7 {[%clk 0:01:55.2]} 20. Nd3 {[%clk 0:02:51.8]} 20... h5 {[%clk
0:01:56.7]} 21. Rab1 {[%clk 0:02:51]} 21... Rh8 {[%clk 0:01:56.8]} 22. f4 {[%clk
0:02:46.2]} 22... h4 {[%clk 0:01:53.2]} 23. gxh4 {[%clk 0:02:47.4]} 23... Rxh4
{[%clk 0:01:23]} 24. g3 {[%clk 0:02:45.2]} 24... Rh6 {[%clk 0:01:24.2]} 25. Kg2
{[%clk 0:02:29.3]} 25... Nb6 {[%clk 0:01:25.3]} 26. Nf2 {[%clk 0:02:28.6]} 26...
f5 {[%clk 0:01:26.8]} 27. exf5 {[%clk 0:02:07.2]} 27... Bxf5 {[%clk 0:01:25.6]}
28. Bd3 {[%clk 0:02:08.5]} 28... Nxc4 {[%clk 0:01:24.6]} 29. Rbe1 {[%clk
0:02:06.8]} 29... Qd7 {[%clk 0:01:19.8]} 30. b3 {[%clk 0:01:55.8]} 30... Bh3+
{[%clk 0:00:37.7]} 31. Kg1 {[%clk 0:01:56.6]} 31... Bxf1 {[%clk 0:00:37.1]} 32.
Bxf1 {[%clk 0:01:55.2]} 32... Nb6 {[%clk 0:00:32.7]} 33. Bb5 {[%clk 0:01:43]}
33... Qf5 {[%clk 0:00:29.8]} 34. Bd3 {[%clk 0:01:43.3]} 34... Qh5 {[%clk
0:00:27.1]} 0-1

[Event "*** Titled Tuesday 3|2 Blitz (Early)"]
[Site "Chess.com"]
[Date "2016.11.01"]
[Round "5"]
[White "AlexanderL"]
[Black "Genghis_K"]
[Result "0-1"]
[WhiteElo "2538"]
[BlackElo "2661"]
[TimeControl "180+2"]
[EndTime "12:03:00 PDT"]
[Termination "Genghis_K won by checkmate"]

1. d4 {[%clk 0:03:01.9]} 1... Nf6 {[%clk 0:03:01]} 2. c4 {[%clk 0:03:02.9]} 2...
g6 {[%clk 0:03:02.5]} 3. Nc3 {[%clk 0:03:03.8]} 3... Bg7 {[%clk 0:03:03.7]} 4.
e4 {[%clk 0:03:05]} 4... d6 {[%clk 0:03:04.9]} 5. Nf3 {[%clk 0:03:06.3]} 5...
O-O {[%clk 0:03:06.5]} 6. Be2 {[%clk 0:03:07.6]} 6... e5 {[%clk 0:03:08]} 7. O-O
{[%clk 0:03:07.8]} 7... Nc6 {[%clk 0:03:08.2]} 8. d5 {[%clk 0:03:09.1]} 8... Ne7
{[%clk 0:03:09.9]} 9. Ne1 {[%clk 0:03:10.4]} 9... Nd7 {[%clk 0:03:03.7]} 10. Be3
{[%clk 0:03:11.5]} 10... f5 {[%clk 0:03:05.1]} 11. f3 {[%clk 0:03:12.8]} 11...
f4 {[%clk 0:03:06.8]} 12. Bf2 {[%clk 0:03:14.3]} 12... g5 {[%clk 0:03:07.4]} 13.
Nd3 {[%clk 0:03:15.5]} 13... Nf6 {[%clk 0:03:01.9]} 14. c5 {[%clk 0:03:16.5]}
14... Ng6 {[%clk 0:03:01.1]} 15. Rc1 {[%clk 0:03:16.7]} 15... Rf7 {[%clk
0:03:00.7]} 16. Kh1 {[%clk 0:03:16.1]} 16... Bf8 {[%clk 0:02:48.1]} 17. Rg1
{[%clk 0:03:17.3]} 17... h5 {[%clk 0:02:45.1]} 18. g3 {[%clk 0:03:17.9]} 18...
fxg3 {[%clk 0:02:46.6]} 19. Rxg3 {[%clk 0:03:19.1]} 19... Rg7 {[%clk 0:02:48.1]}
20. Be3 {[%clk 0:01:23.4]} 20... Nf4 {[%clk 0:02:45.8]} 21. Rg1 {[%clk
0:01:19.5]} 21... Nh3 {[%clk 0:02:44.5]} 22. Rg2 {[%clk 0:01:20.1]} 22... h4
{[%clk 0:02:40.7]} 23. Qd2 {[%clk 0:01:19.3]} 23... Nh5 {[%clk 0:02:40.8]} 24.
Nb5 {[%clk 0:01:09.8]} 24... a6 {[%clk 0:02:31.4]} 25. Na3 {[%clk 0:01:10.3]}
25... N3f4 {[%clk 0:02:21.3]} 26. Nxf4 {[%clk 0:01:09.1]} 26... Nxf4 {[%clk
0:02:18.2]} 27. Rgg1 {[%clk 0:01:06.9]} 27... dxc5 {[%clk 0:02:19.2]} 28. Bxc5
{[%clk 0:01:00.3]} 28... Bxc5 {[%clk 0:02:21.1]} 29. Rxc5 {[%clk 0:01:01.8]}
29... Qf6 {[%clk 0:02:22.4]} 30. Nc4 {[%clk 0:00:54.3]} 30... g4 {[%clk
0:02:13.7]} 31. fxg4 {[%clk 0:00:49.5]} 31... Nh3 {[%clk 0:02:15.2]} 32. Rg2
{[%clk 0:00:27.5]} 32... Bxg4 {[%clk 0:02:00.6]} 33. Nxe5 {[%clk 0:00:07.5]}
33... Nf2+ {[%clk 0:01:46.2]} 34. Rxf2 {[%clk 0:00:05.5]} 34... Qxf2 {[%clk
0:01:45]} 35. Nxg4 {[%clk 0:00:06.7]} 35... Rxg4 {[%clk 0:01:42.3]} 36. Qd1
{[%clk 0:00:05.7]} 36... Qg2# {[%clk 0:01:43.3]} 0-1

[Event "*** Titled Tuesday 3|2 Blitz (Early)"]
[Site "Chess.com"]
[Date "2016.11.01"]
[Round "5"]
[White "ftorodent"]
[Black "Holden-Caulfield"]
[Result "0-1"]
[WhiteElo "2491"]
[BlackElo "2481"]
[TimeControl "180+2"]
[EndTime "12:03:30 PDT"]
[Termination "Holden-Caulfield won by resignation"]

1. d4 {[%clk 0:03:01.9]} 1... d6 {[%clk 0:03:01.1]} 2. Nf3 {[%clk 0:03:02]} 2...
Nf6 {[%clk 0:03:02.2]} 3. c4 {[%clk 0:03:02.7]} 3... Nbd7 {[%clk 0:03:03.3]} 4.
Nc3 {[%clk 0:03:02.7]} 4... e5 {[%clk 0:03:04.5]} 5. Bg5 {[%clk 0:03:03.5]} 5...
Be7 {[%clk 0:03:05.5]} 6. e3 {[%clk 0:03:04.8]} 6... c6 {[%clk 0:03:06.7]} 7.
Qc2 {[%clk 0:03:05.9]} 7... Qc7 {[%clk 0:03:05.6]} 8. Bd3 {[%clk 0:03:05.5]}
8... a6 {[%clk 0:03:05]} 9. O-O {[%clk 0:03:05.4]} 9... h6 {[%clk 0:03:04.5]}
10. Bh4 {[%clk 0:03:06.3]} 10... O-O {[%clk 0:03:05.5]} 11. Rac1 {[%clk
0:03:01.9]} 11... Re8 {[%clk 0:03:06.5]} 12. b4 {[%clk 0:02:54.9]} 12... Nf8
{[%clk 0:03:04.1]} 13. c5 {[%clk 0:02:43.2]} 13... exd4 {[%clk 0:03:01.5]} 14.
exd4 {[%clk 0:02:44.4]} 14... Bg4 {[%clk 0:02:56.8]} 15. Nd2 {[%clk 0:02:23]}
15... Rad8 {[%clk 0:02:49.3]} 16. h3 {[%clk 0:02:18.6]} 16... Be6 {[%clk
0:02:45.9]} 17. Bg3 {[%clk 0:02:14.4]} 17... Qd7 {[%clk 0:02:46.5]} 18. Nf3
{[%clk 0:02:11.5]} 18... dxc5 {[%clk 0:02:36.4]} 19. bxc5 {[%clk 0:02:10.7]}
19... Nd5 {[%clk 0:02:34.1]} 20. Ne5 {[%clk 0:01:50.9]} 20... Qc8 {[%clk
0:02:34.7]} 21. Nxd5 {[%clk 0:01:36.9]} 21... Bxd5 {[%clk 0:02:33.7]} 22. Bf5
{[%clk 0:01:37.7]} 22... Be6 {[%clk 0:02:33.9]} 23. Bxe6 {[%clk 0:00:55.2]}
23... Nxe6 {[%clk 0:02:33.1]} 24. Qf5 {[%clk 0:00:56.8]} 24... Bf6 {[%clk
0:02:16.9]} 25. Ng4 {[%clk 0:00:47.9]} 25... Bg5 {[%clk 0:02:15.5]} 26. f4
{[%clk 0:00:43.8]} 26... Be7 {[%clk 0:02:05.7]} 27. Bf2 {[%clk 0:00:27.7]} 27...
Nxd4 {[%clk 0:01:44.4]} 28. Qxc8 {[%clk 0:00:28.4]} 28... Ne2+ {[%clk
0:01:45.6]} 29. Kh2 {[%clk 0:00:29.6]} 29... Rxc8 {[%clk 0:01:46.9]} 30. f5
{[%clk 0:00:27.2]} 30... Nxc1 {[%clk 0:01:46.9]} 31. Rxc1 {[%clk 0:00:27.6]}
31... Bg5 {[%clk 0:01:47.9]} 32. Rb1 {[%clk 0:00:27.6]} 32... Re7 {[%clk
0:01:39.8]} 33. h4 {[%clk 0:00:25.3]} 33... Bf4+ {[%clk 0:01:40.6]} 34. g3
{[%clk 0:00:25.5]} 34... Bb8 {[%clk 0:01:41.8]} 35. f6 {[%clk 0:00:26.3]} 35...
gxf6 {[%clk 0:01:42.8]} 36. Nxh6+ {[%clk 0:00:26.7]} 36... Kh7 {[%clk
0:01:42.7]} 37. Nf5 {[%clk 0:00:28]} 37... Rd7 {[%clk 0:01:42.1]} 38. Kh3 {[%clk
0:00:25.2]} 38... Re8 {[%clk 0:01:42.8]} 39. Rb2 {[%clk 0:00:22.5]} 39... Re4
{[%clk 0:01:38.1]} 40. Ne3 {[%clk 0:00:19.5]} 40... Be5 {[%clk 0:01:33.4]} 41.
Ng4 {[%clk 0:00:19.8]} 41... Bxb2 {[%clk 0:01:33]} 0-1

[Event "*** Titled Tuesday 3|2 Blitz (Early)"]
[Site "Chess.com"]
[Date "2016.11.01"]
[Round "5"]
[White "IMJonathanCarlstedt"]
[Black "Izoria123"]
[Result "1-0"]
[WhiteElo "2468"]
[BlackElo "2558"]
[TimeControl "180+2"]
[EndTime "12:03:35 PDT"]
[Termination "IMJonathanCarlstedt won by resignation"]

1. c4 {[%clk 0:02:59.4]} 1... Nf6 {[%clk 0:02:59.2]} 2. g3 {[%clk 0:02:59.7]}
2... g6 {[%clk 0:02:54.3]} 3. Bg2 {[%clk 0:03:01]} 3... Bg7 {[%clk 0:02:56.2]}
4. Nc3 {[%clk 0:03:01.9]} 4... O-O {[%clk 0:02:57.8]} 5. e4 {[%clk 0:03:03]}
5... c5 {[%clk 0:02:57]} 6. Nge2 {[%clk 0:03:04.3]} 6... Nc6 {[%clk 0:02:58.3]}
7. a3 {[%clk 0:03:05.5]} 7... Ne8 {[%clk 0:02:58.4]} 8. Rb1 {[%clk 0:03:07.1]}
8... Nc7 {[%clk 0:02:59.4]} 9. b4 {[%clk 0:03:06.1]} 9... d6 {[%clk 0:03:00.4]}
10. d3 {[%clk 0:03:06.7]} 10... Ne6 {[%clk 0:03:00]} 11. O-O {[%clk 0:03:07.4]}
11... Ned4 {[%clk 0:02:58.3]} 12. h3 {[%clk 0:03:07.5]} 12... Rb8 {[%clk
0:02:53.5]} 13. f4 {[%clk 0:03:08.1]} 13... Nxe2+ {[%clk 0:02:44.3]} 14. Nxe2
{[%clk 0:03:08.3]} 14... cxb4 {[%clk 0:02:44.8]} 15. axb4 {[%clk 0:03:08]} 15...
b5 {[%clk 0:02:46.3]} 16. e5 {[%clk 0:03:03.2]} 16... dxe5 {[%clk 0:02:44.7]}
17. Bxc6 {[%clk 0:03:02.2]} 17... Qb6+ {[%clk 0:02:44.8]} 18. c5 {[%clk
0:03:01]} 18... Qxc6 {[%clk 0:02:45.9]} 19. fxe5 {[%clk 0:03:01.9]} 19... Bb7
{[%clk 0:02:34.6]} 20. Nf4 {[%clk 0:02:52]} 20... Bxe5 {[%clk 0:02:33.6]} 21.
Qe2 {[%clk 0:02:29.6]} 21... Bd4+ {[%clk 0:01:48.5]} 22. Kh2 {[%clk 0:02:26.8]}
22... e5 {[%clk 0:01:47.7]} 23. Ng2 {[%clk 0:02:11.2]} 23... f5 {[%clk
0:01:43.5]} 24. Bh6 {[%clk 0:02:10.5]} 24... Rf7 {[%clk 0:01:43.9]} 25. Nh4
{[%clk 0:01:57.1]} 25... Re8 {[%clk 0:01:42]} 26. Nf3 {[%clk 0:01:56.8]} 26...
f4 {[%clk 0:01:33.3]} 27. Qa2 {[%clk 0:01:44]} 27... fxg3+ {[%clk 0:01:15.9]}
28. Kxg3 {[%clk 0:01:43.8]} 28... Qc7 {[%clk 0:01:05.9]} 29. Ng5 {[%clk
0:01:36.5]} 29... e4+ {[%clk 0:00:38.4]} 30. Kh4 {[%clk 0:01:35.9]} 30... Re7
{[%clk 0:00:34.6]} 31. Rxf7 {[%clk 0:01:34.5]} 31... Rxf7 {[%clk 0:00:33.4]} 32.
Rf1 {[%clk 0:01:34.7]} 32... Bc3 {[%clk 0:00:07.7]} 1-0

[Event "*** Titled Tuesday 3|2 Blitz (Early)"]
[Site "Chess.com"]
[Date "2016.11.01"]
[Round "5"]
[White "GM_dmitrij"]
[Black "Jungle_Jaguar"]
[Result "0-1"]
[WhiteElo "2406"]
[BlackElo "2325"]
[TimeControl "180+2"]
[EndTime "12:03:37 PDT"]
[Termination "Jungle_Jaguar won by checkmate"]

1. e4 {[%clk 0:03:02]} 1... c5 {[%clk 0:03:00.4]} 2. Nf3 {[%clk 0:03:02.8]} 2...
e6 {[%clk 0:03:01.7]} 3. d4 {[%clk 0:03:03.8]} 3... cxd4 {[%clk 0:03:03.6]} 4.
Nxd4 {[%clk 0:03:05.2]} 4... Nf6 {[%clk 0:03:05]} 5. Nc3 {[%clk 0:03:06.2]} 5...
Bb4 {[%clk 0:03:05.6]} 6. e5 {[%clk 0:03:06.2]} 6... Ne4 {[%clk 0:03:06.5]} 7.
Qg4 {[%clk 0:02:51.8]} 7... Nxc3 {[%clk 0:03:07.4]} 8. Qxg7 {[%clk 0:02:08.1]}
8... Rf8 {[%clk 0:03:07.7]} 9. Bd2 {[%clk 0:01:31]} 9... Nd5 {[%clk 0:02:44.1]}
10. Bxb4 {[%clk 0:01:32.1]} 10... Nxb4 {[%clk 0:02:46]} 11. Nb5 {[%clk
0:01:33.4]} 11... d5 {[%clk 0:02:38.1]} 12. exd6 {[%clk 0:01:33.6]} 12... N8a6
{[%clk 0:02:13.5]} 13. O-O-O {[%clk 0:01:28.8]} 13... Bd7 {[%clk 0:02:04.3]} 14.
a3 {[%clk 0:01:10.7]} 14... Nd5 {[%clk 0:01:59.3]} 15. Rxd5 {[%clk 0:00:56.3]}
15... exd5 {[%clk 0:01:49.7]} 16. Nd4 {[%clk 0:00:49.2]} 16... Nc5 {[%clk
0:01:20.4]} 17. Bd3 {[%clk 0:00:20.1]} 17... Nxd3+ {[%clk 0:00:40.6]} 18. cxd3
{[%clk 0:00:21.4]} 18... Be6 {[%clk 0:00:41.8]} 19. Qe5 {[%clk 0:00:18.1]} 19...
Qd7 {[%clk 0:00:37.9]} 20. Kb1 {[%clk 0:00:19.4]} 20... O-O-O {[%clk 0:00:34.9]}
21. Rc1+ {[%clk 0:00:18.1]} 21... Kb8 {[%clk 0:00:36.1]} 22. Nb5 {[%clk
0:00:17.8]} 22... Qxb5 {[%clk 0:00:25.4]} 23. d7+ {[%clk 0:00:18.9]} 23... Ka8
{[%clk 0:00:26.4]} 24. Rc7 {[%clk 0:00:17.6]} 24... Qxd3+ {[%clk 0:00:16.7]} 25.
Ka1 {[%clk 0:00:18.2]} 25... Qd1+ {[%clk 0:00:17.1]} 26. Ka2 {[%clk 0:00:19.1]}
26... d4+ {[%clk 0:00:18]} 27. b3 {[%clk 0:00:20.6]} 27... Qxb3+ {[%clk
0:00:18.6]} 28. Ka1 {[%clk 0:00:22.3]} 28... Qa2# {[%clk 0:00:20.4]} 0-1

[Event "*** Titled Tuesday 3|2 Blitz (Early)"]
[Site "Chess.com"]
[Date "2016.11.01"]
[Round "5"]
[White "Peroncio"]
[Black "metalbattler"]
[Result "1-0"]
[WhiteElo "2513"]
[BlackElo "2012"]
[TimeControl "180+2"]
[EndTime "12:03:54 PDT"]
[Termination "Peroncio won by resignation"]

1. e4 {[%clk 0:03:01.9]} 1... d5 {[%clk 0:02:59.8]} 2. exd5 {[%clk 0:03:02.1]}
2... Nf6 {[%clk 0:03:00.9]} 3. c4 {[%clk 0:03:02.3]} 3... c6 {[%clk 0:03:01.1]}
4. d4 {[%clk 0:03:02.4]} 4... cxd5 {[%clk 0:03:01.1]} 5. Nc3 {[%clk 0:03:01.2]}
5... e6 {[%clk 0:03:01.8]} 6. Nf3 {[%clk 0:03:00.6]} 6... Bb4 {[%clk 0:03:02.2]}
7. cxd5 {[%clk 0:03:00.7]} 7... Nxd5 {[%clk 0:03:02.3]} 8. Qc2 {[%clk
0:03:00.4]} 8... O-O {[%clk 0:02:59.7]} 9. Bd3 {[%clk 0:02:59.6]} 9... h6 {[%clk
0:02:49.2]} 10. O-O {[%clk 0:02:57.6]} 10... Be7 {[%clk 0:02:50.1]} 11. a3
{[%clk 0:02:58]} 11... Nc6 {[%clk 0:02:50.3]} 12. Bd2 {[%clk 0:02:53.7]} 12...
Nf6 {[%clk 0:02:49.9]} 13. Ne4 {[%clk 0:02:45.3]} 13... Nxd4 {[%clk 0:02:40.3]}
14. Nxd4 {[%clk 0:02:47.2]} 14... Qxd4 {[%clk 0:02:41]} 15. Bc3 {[%clk
0:02:48.3]} 15... Qd5 {[%clk 0:02:15.4]} 16. Nxf6+ {[%clk 0:02:45]} 16... Bxf6
{[%clk 0:02:16.9]} 17. Bxf6 {[%clk 0:02:45.7]} 17... gxf6 {[%clk 0:02:18.8]} 18.
Be4 {[%clk 0:02:41.9]} 18... Qg5 {[%clk 0:02:15.5]} 19. Rad1 {[%clk 0:02:35.7]}
19... f5 {[%clk 0:02:12.4]} 20. Rd3 {[%clk 0:02:32.9]} 20... Kh8 {[%clk
0:02:11.5]} 21. Rg3 {[%clk 0:02:33.2]} 21... Qf6 {[%clk 0:02:08.5]} 22. Bf3
{[%clk 0:02:32.1]} 22... e5 {[%clk 0:01:57.2]} 23. Bd5 {[%clk 0:02:29.4]} 23...
Be6 {[%clk 0:01:52.8]} 24. Bxb7 {[%clk 0:02:29.4]} 24... Rab8 {[%clk 0:01:51.2]}
25. Ba6 {[%clk 0:02:28.8]} 25... Rg8 {[%clk 0:01:46.8]} 26. Rxg8+ {[%clk
0:02:27.5]} 26... Rxg8 {[%clk 0:01:46.3]} 27. Bb7 {[%clk 0:02:28.2]} 27... e4
{[%clk 0:01:46.2]} 28. Rc1 {[%clk 0:02:21.8]} 28... Qg5 {[%clk 0:01:40.4]} 29.
Qc3+ {[%clk 0:02:18.3]} 29... Kh7 {[%clk 0:01:40.3]} 30. g3 {[%clk 0:02:18.6]}
30... h5 {[%clk 0:01:33.9]} 31. Qe3 {[%clk 0:01:58.3]} 31... Qf6 {[%clk
0:00:58.9]} 32. Qc3 {[%clk 0:01:51.5]} 32... Qg5 {[%clk 0:00:59.1]} 33. Qe3
{[%clk 0:01:44.2]} 33... Qf6 {[%clk 0:00:59.9]} 34. b4 {[%clk 0:01:45.3]} 34...
h4 {[%clk 0:00:56.7]} 35. Rc7 {[%clk 0:01:38.3]} 35... hxg3 {[%clk 0:00:53.7]}
36. hxg3 {[%clk 0:01:40.2]} 36... Rg6 {[%clk 0:00:53.3]} 37. Qc3 {[%clk
0:01:36.5]} 37... Qg5 {[%clk 0:00:45.5]} 38. Qc1 {[%clk 0:01:34.2]} 38... Qg4
{[%clk 0:00:42.8]} 39. Bc8 {[%clk 0:01:29.6]} 39... f4 {[%clk 0:00:15.7]} 40.
Bxe6 {[%clk 0:01:27.9]} 40... Qxe6 {[%clk 0:00:16.5]} 41. Qxf4 {[%clk
0:01:26.7]} 41... Rh6 {[%clk 0:00:13.1]} 42. Qxf7+ {[%clk 0:01:21.7]} 42... Qxf7
{[%clk 0:00:14]} 43. Rxf7+ {[%clk 0:01:23.6]} 43... Kg8 {[%clk 0:00:15.6]} 44.
Rxa7 {[%clk 0:01:24.8]} 1-0

[Event "*** Titled Tuesday 3|2 Blitz (Early)"]
[Site "Chess.com"]
[Date "2016.11.01"]
[Round "5"]
[White "Tash_Boy"]
[Black "swayamsm"]
[Result "0-1"]
[WhiteElo "2471"]
[BlackElo "2636"]
[TimeControl "180+2"]
[EndTime "12:04:07 PDT"]
[Termination "swayamsm won by resignation"]

1. e4 {[%clk 0:02:59.7]} 1... e6 {[%clk 0:03:00]} 2. d4 {[%clk 0:02:59.1]} 2...
d5 {[%clk 0:03:01.9]} 3. Nd2 {[%clk 0:03:00.2]} 3... Be7 {[%clk 0:03:00.5]} 4.
Bd3 {[%clk 0:02:58.1]} 4... c5 {[%clk 0:02:56.3]} 5. dxc5 {[%clk 0:02:55.3]}
5... Nf6 {[%clk 0:02:51.6]} 6. Qe2 {[%clk 0:02:56.3]} 6... a5 {[%clk 0:02:50.1]}
7. Ngf3 {[%clk 0:02:50.6]} 7... O-O {[%clk 0:02:47]} 8. O-O {[%clk 0:02:50.8]}
8... Na6 {[%clk 0:02:47.1]} 9. e5 {[%clk 0:02:35.9]} 9... Nd7 {[%clk 0:02:37]}
10. c3 {[%clk 0:02:37.2]} 10... Naxc5 {[%clk 0:02:37.4]} 11. Bc2 {[%clk
0:02:37.5]} 11... b5 {[%clk 0:02:38.2]} 12. Re1 {[%clk 0:02:38.4]} 12... b4
{[%clk 0:02:38.8]} 13. Nf1 {[%clk 0:02:37.1]} 13... Ba6 {[%clk 0:02:33.5]} 14.
Qe3 {[%clk 0:02:37.8]} 14... Qc7 {[%clk 0:02:27.9]} 15. Ng3 {[%clk 0:02:37.2]}
15... Rfc8 {[%clk 0:02:24.6]} 16. Nd4 {[%clk 0:02:32.3]} 16... bxc3 {[%clk
0:02:06]} 17. bxc3 {[%clk 0:02:32.3]} 17... Rab8 {[%clk 0:01:59.2]} 18. Nh5
{[%clk 0:02:31.7]} 18... Bf8 {[%clk 0:01:51.3]} 19. Qg3 {[%clk 0:02:24.3]} 19...
Ne4 {[%clk 0:01:46.7]} 20. Bxe4 {[%clk 0:01:46.6]} 20... dxe4 {[%clk 0:01:48.6]}
21. Bd2 {[%clk 0:01:07.4]} 21... Qxe5 {[%clk 0:01:44]} 22. Qh4 {[%clk
0:00:54.9]} 22... Rb2 {[%clk 0:01:28.4]} 23. Rxe4 {[%clk 0:00:53.9]} 23... Qd5
{[%clk 0:01:22.4]} 24. Bh6 {[%clk 0:00:41.3]} 24... gxh6 {[%clk 0:01:12.5]} 25.
Rg4+ {[%clk 0:00:40.9]} 25... Kh8 {[%clk 0:01:13.2]} 26. Nf6 {[%clk 0:00:42.4]}
26... Be7 {[%clk 0:01:07.6]} 27. Qxh6 {[%clk 0:00:09.5]} 27... Bxf6 {[%clk
0:01:05]} 28. Re1 {[%clk 0:00:11]} 28... Rg8 {[%clk 0:00:58.9]} 29. Rge4 {[%clk
0:00:08.8]} 29... Qxe4 {[%clk 0:00:55.8]} 0-1

[Event "*** Titled Tuesday 3|2 Blitz (Early)"]
[Site "Chess.com"]
[Date "2016.11.01"]
[Round "5"]
[White "Quiet_Desperation"]
[Black "superjem123"]
[Result "1-0"]
[WhiteElo "2310"]
[BlackElo "2452"]
[TimeControl "180+2"]
[EndTime "12:04:28 PDT"]
[Termination "Quiet_Desperation won by checkmate"]

1. e4 {[%clk 0:03:01.9]} 1... e5 {[%clk 0:03:00.7]} 2. Nf3 {[%clk 0:03:00.1]}
2... Nc6 {[%clk 0:03:02]} 3. Bb5 {[%clk 0:03:00.6]} 3... Nf6 {[%clk 0:03:01.7]}
4. d3 {[%clk 0:03:01.2]} 4... Bc5 {[%clk 0:03:01.8]} 5. O-O {[%clk 0:03:01.8]}
5... O-O {[%clk 0:02:59.3]} 6. c3 {[%clk 0:03:02.4]} 6... d6 {[%clk 0:02:58.3]}
7. h3 {[%clk 0:03:03.2]} 7... a6 {[%clk 0:02:56.4]} 8. Ba4 {[%clk 0:03:03.8]}
8... b5 {[%clk 0:02:55.1]} 9. Bc2 {[%clk 0:03:04.3]} 9... Bb6 {[%clk 0:02:54.2]}
10. Qe2 {[%clk 0:03:03.2]} 10... Ne7 {[%clk 0:02:55.1]} 11. Rd1 {[%clk
0:03:03.7]} 11... Ng6 {[%clk 0:02:55.8]} 12. Be3 {[%clk 0:02:56.6]} 12... Bxe3
{[%clk 0:02:54.8]} 13. fxe3 {[%clk 0:02:57.1]} 13... Qe7 {[%clk 0:02:50.1]} 14.
Nbd2 {[%clk 0:02:58.1]} 14... Nh5 {[%clk 0:02:51]} 15. Qf2 {[%clk 0:02:46.3]}
15... h6 {[%clk 0:02:47.4]} 16. Nf1 {[%clk 0:02:42.5]} 16... Bd7 {[%clk
0:02:40]} 17. N1h2 {[%clk 0:02:43]} 17... Nf6 {[%clk 0:02:27.3]} 18. Rf1 {[%clk
0:02:32.3]} 18... d5 {[%clk 0:02:27]} 19. exd5 {[%clk 0:02:31.4]} 19... Nxd5
{[%clk 0:02:28.9]} 20. Rae1 {[%clk 0:02:18.8]} 20... Be6 {[%clk 0:02:27]} 21.
Qg3 {[%clk 0:02:17]} 21... Qd6 {[%clk 0:02:23.3]} 22. Nh4 {[%clk 0:01:48.4]}
22... Nxh4 {[%clk 0:02:19.3]} 23. Qxh4 {[%clk 0:01:46.9]} 23... f5 {[%clk
0:02:20.4]} 24. Qg3 {[%clk 0:01:39.3]} 24... Rae8 {[%clk 0:02:19.4]} 25. Bb3
{[%clk 0:01:38.2]} 25... f4 {[%clk 0:02:14.7]} 26. exf4 {[%clk 0:01:38.7]} 26...
exf4 {[%clk 0:02:16.6]} 27. Qg6 {[%clk 0:01:20.3]} 27... Ne3 {[%clk 0:02:14.2]}
28. Rf2 {[%clk 0:01:11.2]} 28... Qd7 {[%clk 0:01:55.5]} 29. Nf3 {[%clk
0:01:02.3]} 29... Bxb3 {[%clk 0:01:43.8]} 30. axb3 {[%clk 0:01:00.5]} 30... Re6
{[%clk 0:01:44]} 31. Qh5 {[%clk 0:00:51.2]} 31... Qxd3 {[%clk 0:01:39.2]} 32.
Nd4 {[%clk 0:00:52.4]} 32... Rg6 {[%clk 0:01:30.1]} 33. Rxe3 {[%clk 0:00:35.9]}
33... fxe3 {[%clk 0:01:24.1]} 34. Qd5+ {[%clk 0:00:35.4]} 34... Kh7 {[%clk
0:01:23.1]} 35. Rxf8 {[%clk 0:00:35]} 35... Rg5 {[%clk 0:00:59.8]} 36. Qg8+
{[%clk 0:00:33.9]} 36... Kg6 {[%clk 0:01:01.1]} 37. Qf7+ {[%clk 0:00:34.9]}
37... Kh7 {[%clk 0:01:01.7]} 38. Nf5 {[%clk 0:00:20.2]} 38... Qd2 {[%clk
0:00:16.3]} 39. Qg8+ {[%clk 0:00:17.8]} 39... Kg6 {[%clk 0:00:17.5]} 40. Qxg7+
{[%clk 0:00:19.5]} 40... Kh5 {[%clk 0:00:17.1]} 41. Qxh6# {[%clk 0:00:21.2]} 1-0